[Event "2026 European Womens Championship"]
[Site "Batumi, GE"]
[Date "2026.06.04"]
[Round "10"]
[White "Bulmaga, Irina"]
[Black "Ismayil, Malak"]
[Result "1/2-1/2"]
[Board "19"]
[TimeControl "5400+30"]
[WhiteFideId "13903063"]
[BlackFideId "13412604"]
[WhiteElo "2361"]
[BlackElo "2122"]
[WhiteTitle "IM"]
[BlackTitle "WIM"]
[WhiteClock "0:26:39"]
[BlackClock "0:51:07"]
[Variant "Standard"]

1. e4 {[%clk 1:30:56]}  c6 {[%clk 1:30:48]} 2. d4 {[%clk 1:31:14]}  d5 {[%clk 1:31:15]} 3. e5 {[%clk 1:31:38]}  Bf5 {[%clk 1:31:42]}
4. Nf3 {[%clk 1:32:00]}  e6 {[%clk 1:32:08]} 5. Be2 {[%clk 1:32:23]}  c5 {[%clk 1:32:26]} 6. Be3 {[%clk 1:32:45]}  cxd4 {[%clk 1:32:27]}
7. Nxd4 {[%clk 1:33:04]}  Ne7 {[%clk 1:32:54]} 8. c4 {[%clk 1:33:10]}  Nbc6 {[%clk 1:32:31]} 9. Qa4 {[%clk 1:32:38]}  a6 {[%clk 1:30:42]}
10. Nc3 {[%clk 1:33:00]}  dxc4 {[%clk 1:30:19]} 11. O-O-O {[%clk 1:33:03]}  Qa5 {[%clk 1:30:29]} 12. Qxa5 {[%clk 1:33:24]}  Nxa5 {[%clk 1:30:56]}
13. Nxf5 {[%clk 1:33:39]}  Nxf5 {[%clk 1:31:24]} 14. Bb6 {[%clk 1:33:49]}  Nc6 {[%clk 1:31:45]} 15. f4 {[%clk 1:31:55]}  Rc8 {[%clk 1:32:06]}
16. a3 {[%clk 1:27:31]}  Be7 {[%clk 1:28:48]} 17. Ne4 {[%clk 1:16:17]}  h5 {[%clk 1:19:37]} 18. Kb1 {[%clk 0:59:30]}  Bd8 {[%clk 1:18:19]}
19. Bc5 {[%clk 0:57:18]}  Be7 {[%clk 1:17:23]} 20. Bb6 {[%clk 0:52:15]}  Bd8 {[%clk 1:14:15]} 21. Bf2 {[%clk 0:51:41]}  b5 {[%clk 1:02:13]}
22. h3 {[%clk 0:33:51]}  Be7 {[%clk 0:52:11]} 23. g3 {[%clk 0:32:43]}  Rd8 {[%clk 0:41:46]} 24. Rxd8+ {[%clk 0:32:54]}  Kxd8 {[%clk 0:40:58]}
25. Rd1+ {[%clk 0:29:50]}  Kc7 {[%clk 0:39:58]} 26. a4 {[%clk 0:28:06]}  h4 {[%clk 0:34:26]} 27. axb5 {[%clk 0:26:06]}  axb5 {[%clk 0:34:53]}
28. g4 {[%clk 0:16:57]}  Ng3 {[%clk 0:35:14]} 29. Bf3 {[%clk 0:16:08]}  Nxe4 {[%clk 0:33:33]} 30. Bxe4 {[%clk 0:16:36]}  Na5 {[%clk 0:32:21]}
31. Kc2 {[%clk 0:11:05]}  Nb3 {[%clk 0:32:30]} 32. Kc3 {[%clk 0:07:04]}  Nc5 {[%clk 0:27:38]} 33. Bxc5 {[%clk 0:05:03]}  Bxc5 {[%clk 0:28:05]}
34. f5 {[%clk 0:05:12]}  Re8 {[%clk 0:24:26]} 35. fxe6 {[%clk 0:03:49]}  Rxe6 {[%clk 0:23:23]} 36. Rd5 {[%clk 0:04:17]}  Kb6 {[%clk 0:23:47]}
37. Bf5 {[%clk 0:04:31]}  Re7 {[%clk 0:24:14]} 38. Bd7 {[%clk 0:03:17]}  g5 {[%clk 0:21:48]} 39. b3 {[%clk 0:00:43]}  cxb3 {[%clk 0:22:12]}
40. Kxb3 {[%clk 0:01:01]}  Be3 {[%clk 0:21:07]} 41. Rxb5+ {[%clk 0:25:54]}  Kc7 {[%clk 0:50:05]} 42. Bf5 {[%clk 0:26:12]}  Bf4 {[%clk 0:50:29]}
43. Be4 {[%clk 0:25:48]}  Rxe5 {[%clk 0:50:41]} 44. Rxe5 {[%clk 0:26:14]}  Bxe5 {[%clk 0:51:07]} 45. Kc4 {[%clk 0:26:39]} 1/2-1/2

[Event "2026 European Womens Championship"]
[Site "Batumi, GE"]
[Date "2026.06.04"]
[Round "10"]
[White "Jarocka, Liwia"]
[Black "Avramidou, Anastasia"]
[Result "1/2-1/2"]
[Board "20"]
[TimeControl "5400+30"]
[WhiteFideId "21807558"]
[BlackFideId "4239873"]
[WhiteElo "2288"]
[BlackElo "2320"]
[WhiteTitle "FM"]
[BlackTitle "FM"]
[WhiteClock "0:12:47"]
[BlackClock "0:06:35"]
[Variant "Standard"]

1. e4 {[%clk 1:30:55]}  d6 {[%clk 1:30:54]} 2. d4 {[%clk 1:30:58]}  Nf6 {[%clk 1:31:16]} 3. Nc3 {[%clk 1:31:15]}  c6 {[%clk 1:31:42]}
4. a4 {[%clk 1:31:03]}  g6 {[%clk 1:31:58]} 5. h3 {[%clk 1:30:27]}  Bg7 {[%clk 1:32:22]} 6. Nf3 {[%clk 1:30:43]}  O-O {[%clk 1:32:01]}
7. Be3 {[%clk 1:29:20]}  d5 {[%clk 1:23:59]} 8. e5 {[%clk 1:19:42]}  Ne4 {[%clk 1:24:22]} 9. Bd3 {[%clk 1:11:39]}  Qa5 {[%clk 1:07:54]}
10. O-O {[%clk 1:09:13]}  Nxc3 {[%clk 0:58:58]} 11. bxc3 {[%clk 1:08:18]}  f6 {[%clk 0:59:22]} 12. exf6 {[%clk 1:06:02]}  exf6 {[%clk 0:59:35]}
13. c4 {[%clk 1:03:20]}  Be6 {[%clk 0:55:17]} 14. cxd5 {[%clk 0:53:23]}  cxd5 {[%clk 0:45:24]} 15. Re1 {[%clk 0:51:44]}  Qc7 {[%clk 0:43:11]}
16. Rb1 {[%clk 0:42:47]}  Nc6 {[%clk 0:42:35]} 17. Qc1 {[%clk 0:42:07]}  Qd7 {[%clk 0:36:36]} 18. Qb2 {[%clk 0:37:19]}  Rf7 {[%clk 0:36:26]}
19. Bd2 {[%clk 0:32:21]}  Bf5 {[%clk 0:32:21]} 20. Bxf5 {[%clk 0:30:37]}  Qxf5 {[%clk 0:32:33]} 21. Qa2 {[%clk 0:30:31]}  Rd8 {[%clk 0:25:46]}
22. Rb5 {[%clk 0:30:36]}  a6 {[%clk 0:24:10]} 23. Rb3 {[%clk 0:30:38]}  g5 {[%clk 0:22:39]} 24. Rbe3 {[%clk 0:27:29]}  Bf8 {[%clk 0:21:50]}
25. Re8 {[%clk 0:26:38]}  Rxe8 {[%clk 0:17:32]} 26. Rxe8 {[%clk 0:27:07]}  Qd7 {[%clk 0:17:53]} 27. Re1 {[%clk 0:22:09]}  Re7 {[%clk 0:17:19]}
28. Rxe7 {[%clk 0:20:41]}  Nxe7 {[%clk 0:17:42]} 29. Qb3 {[%clk 0:18:07]}  Qc6 {[%clk 0:12:19]} 30. Bb4 {[%clk 0:15:06]}  Ng6 {[%clk 0:10:05]}
31. Bxf8 {[%clk 0:15:19]}  Nxf8 {[%clk 0:10:17]} 32. h4 {[%clk 0:14:04]}  h6 {[%clk 0:10:38]} 33. hxg5 {[%clk 0:12:37]}  hxg5 {[%clk 0:11:05]}
34. c3 {[%clk 0:12:47]}  Ng6 {[%clk 0:06:35]} 1/2-1/2

[Event "2026 European Womens Championship"]
[Site "Batumi, GE"]
[Date "2026.06.04"]
[Round "10"]
[White "Hryzlova, Sofiia"]
[Black "Kazarian, Anna-Maja"]
[Result "1/2-1/2"]
[Board "21"]
[TimeControl "5400+30"]
[WhiteFideId "14174669"]
[BlackFideId "1033689"]
[WhiteElo "2226"]
[BlackElo "2317"]
[WhiteTitle "WIM"]
[BlackTitle "FM"]
[WhiteClock "0:07:08"]
[BlackClock "0:01:05"]
[Variant "Standard"]

1. e4 {[%clk 1:30:57]}  e6 {[%clk 1:30:55]} 2. d4 {[%clk 1:31:20]}  d5 {[%clk 1:31:20]} 3. Nd2 {[%clk 1:31:42]}  c5 {[%clk 1:31:17]}
4. Ngf3 {[%clk 1:32:00]}  cxd4 {[%clk 1:28:23]} 5. Nxd4 {[%clk 1:32:22]}  Nc6 {[%clk 1:28:48]} 6. Bb5 {[%clk 1:32:44]}  Bd7 {[%clk 1:29:14]}
7. Nxc6 {[%clk 1:33:03]}  bxc6 {[%clk 1:29:40]} 8. Bd3 {[%clk 1:33:22]}  Bd6 {[%clk 1:19:59]} 9. Qe2 {[%clk 1:32:43]}  Ne7 {[%clk 1:20:20]}
10. Nf3 {[%clk 1:26:50]}  Ng6 {[%clk 1:16:26]} 11. e5 {[%clk 1:23:18]}  Bc7 {[%clk 1:16:10]} 12. O-O {[%clk 1:22:25]}  O-O {[%clk 0:59:15]}
13. Ng5 {[%clk 1:15:31]}  Qe8 {[%clk 0:53:46]} 14. f4 {[%clk 0:59:10]}  f5 {[%clk 0:50:41]} 15. Be3 {[%clk 0:47:39]}  h6 {[%clk 0:48:03]}
16. Nh3 {[%clk 0:46:29]}  Bb6 {[%clk 0:44:24]} 17. c4 {[%clk 0:41:35]}  d4 {[%clk 0:38:22]} 18. Bd2 {[%clk 0:41:45]}  a5 {[%clk 0:36:59]}
19. Qe1 {[%clk 0:34:20]}  Qe7 {[%clk 0:27:39]} 20. Qg3 {[%clk 0:33:07]}  Be8 {[%clk 0:22:29]} 21. Nf2 {[%clk 0:32:41]}  Bd8 {[%clk 0:16:11]}
22. Be2 {[%clk 0:30:55]}  c5 {[%clk 0:12:02]} 23. Nd3 {[%clk 0:29:50]}  Nh4 {[%clk 0:11:28]} 24. Be1 {[%clk 0:29:27]}  g5 {[%clk 0:06:37]}
25. Qh3 {[%clk 0:23:19]}  Bc6 {[%clk 0:03:56]} 26. Bxh4 {[%clk 0:22:09]}  gxh4 {[%clk 0:04:23]} 27. Bf3 {[%clk 0:22:20]}  Be4 {[%clk 0:03:28]}
28. Nf2 {[%clk 0:22:36]}  Bxf3 {[%clk 0:00:55]} 29. Qxf3 {[%clk 0:22:58]}  Rb8 {[%clk 0:01:22]} 30. Nd3 {[%clk 0:23:12]}  Kh7 {[%clk 0:01:19]}
31. Rf2 {[%clk 0:22:38]}  Qc7 {[%clk 0:01:02]} 32. b3 {[%clk 0:17:21]}  Rg8 {[%clk 0:01:11]} 33. Nb2 {[%clk 0:16:32]}  Rg4 {[%clk 0:01:20]}
34. Rd1 {[%clk 0:15:25]}  Be7 {[%clk 0:01:20]} 35. Rd3 {[%clk 0:13:30]}  Rbg8 {[%clk 0:01:30]} 36. Na4 {[%clk 0:13:12]}  R4g6 {[%clk 0:01:00]}
37. Kf1 {[%clk 0:12:57]}  Rg4 {[%clk 0:01:07]} 38. Ke2 {[%clk 0:11:47]}  Bd8 {[%clk 0:00:49]} 39. Kd1 {[%clk 0:11:22]}  Be7 {[%clk 0:00:48]}
40. Kc2 {[%clk 0:10:45]}  Bd8 {[%clk 0:01:05]} 41. Re2 {[%clk 0:07:08]} 1/2-1/2

[Event "2026 European Womens Championship"]
[Site "Batumi, GE"]
[Date "2026.06.04"]
[Round "10"]
[White "Safarli, Josefine"]
[Black "Sliwicka, Alicja"]
[Result "1/2-1/2"]
[Board "22"]
[TimeControl "5400+30"]
[WhiteFideId "12900460"]
[BlackFideId "1150677"]
[WhiteElo "2253"]
[BlackElo "2315"]
[WhiteTitle "WGM"]
[BlackTitle "WGM"]
[WhiteClock "0:43:13"]
[BlackClock "0:38:48"]
[Variant "Standard"]

1. e4 {[%clk 1:30:57]}  c5 {[%clk 1:30:55]} 2. Nf3 {[%clk 1:31:21]}  Nc6 {[%clk 1:31:20]} 3. Bb5 {[%clk 1:31:47]}  d6 {[%clk 1:31:44]}
4. O-O {[%clk 1:31:40]}  Bd7 {[%clk 1:32:10]} 5. Re1 {[%clk 1:30:48]}  Nf6 {[%clk 1:32:33]} 6. c3 {[%clk 1:30:46]}  a6 {[%clk 1:32:56]}
7. Bf1 {[%clk 1:31:11]}  Bg4 {[%clk 1:33:19]} 8. d4 {[%clk 1:29:44]}  cxd4 {[%clk 1:33:41]} 9. cxd4 {[%clk 1:30:10]}  e5 {[%clk 1:33:47]}
10. d5 {[%clk 1:30:35]}  Nd4 {[%clk 1:34:11]} 11. Be3 {[%clk 1:30:50]}  Nxf3+ {[%clk 1:34:19]} 12. gxf3 {[%clk 1:31:16]}  Bd7 {[%clk 1:34:42]}
13. a4 {[%clk 1:28:36]}  Be7 {[%clk 1:27:09]} 14. Nd2 {[%clk 1:26:37]}  O-O {[%clk 1:26:59]} 15. Nc4 {[%clk 1:24:17]}  Nh5 {[%clk 1:26:38]}
16. Nb6 {[%clk 1:22:14]}  Rb8 {[%clk 1:26:24]} 17. Nxd7 {[%clk 1:19:15]}  Qxd7 {[%clk 1:26:46]} 18. Qd2 {[%clk 1:19:39]}  h6 {[%clk 1:09:12]}
19. a5 {[%clk 1:10:54]}  Kh7 {[%clk 1:03:49]} 20. b4 {[%clk 1:04:30]}  Rfc8 {[%clk 0:56:38]} 21. Rac1 {[%clk 1:00:27]}  Nf4 {[%clk 0:48:07]}
22. Rxc8 {[%clk 0:50:37]}  Rxc8 {[%clk 0:48:28]} 23. Bxf4 {[%clk 0:43:40]}  exf4 {[%clk 0:48:51]} 24. Rc1 {[%clk 0:44:04]}  Rxc1 {[%clk 0:46:18]}
25. Qxc1 {[%clk 0:44:25]}  Bf6 {[%clk 0:45:38]} 26. Qc4 {[%clk 0:41:17]}  Be5 {[%clk 0:41:12]} 27. b5 {[%clk 0:41:28]}  axb5 {[%clk 0:41:09]}
28. Qxb5 {[%clk 0:41:54]}  Qxb5 {[%clk 0:37:59]} 29. Bxb5 {[%clk 0:42:20]}  Bc3 {[%clk 0:38:23]} 30. a6 {[%clk 0:42:47]}  bxa6 {[%clk 0:38:48]}
31. Bxa6 {[%clk 0:43:13]} 1/2-1/2

[Event "2026 European Womens Championship"]
[Site "Batumi, GE"]
[Date "2026.06.04"]
[Round "10"]
[White "Javakhishvili, Lela"]
[Black "Deak-Sala, Emilia"]
[Result "1-0"]
[Board "23"]
[TimeControl "5400+30"]
[WhiteFideId "13601458"]
[BlackFideId "795615"]
[WhiteElo "2442"]
[BlackElo "2086"]
[WhiteTitle "IM"]
[BlackTitle "WFM"]
[WhiteClock "1:08:48"]
[BlackClock "0:22:43"]
[Variant "Standard"]

1. Nf3 {[%clk 1:30:56]}  Nf6 {[%clk 1:29:19]} 2. b3 {[%clk 1:31:16]}  g6 {[%clk 1:29:12]} 3. Bb2 {[%clk 1:31:39]}  Bg7 {[%clk 1:29:39]}
4. g3 {[%clk 1:31:57]}  O-O {[%clk 1:29:53]} 5. Bg2 {[%clk 1:32:23]}  d6 {[%clk 1:30:07]} 6. d4 {[%clk 1:32:38]}  Nbd7 {[%clk 1:30:13]}
7. O-O {[%clk 1:31:19]}  Re8 {[%clk 1:30:40]} 8. Re1 {[%clk 1:26:29]}  c6 {[%clk 1:22:43]} 9. a4 {[%clk 1:23:45]}  a5 {[%clk 1:19:27]}
10. e4 {[%clk 1:21:51]}  Qc7 {[%clk 1:18:47]} 11. Na3 {[%clk 1:22:12]}  e5 {[%clk 1:17:39]} 12. dxe5 {[%clk 1:21:45]}  dxe5 {[%clk 1:14:45]}
13. Nc4 {[%clk 1:22:05]}  Bf8 {[%clk 1:13:30]} 14. Qd2 {[%clk 1:21:46]}  Bb4 {[%clk 1:03:55]} 15. Qg5 {[%clk 1:19:49]}  b5 {[%clk 0:46:32]}
16. Ncxe5 {[%clk 1:15:12]}  h6 {[%clk 0:31:27]} 17. Qh4 {[%clk 1:09:07]}  bxa4 {[%clk 0:22:47]} 18. Nxd7 {[%clk 1:08:40]}  Nxd7 {[%clk 0:22:43]}
19. Qxh6 {[%clk 1:08:48]} 1-0

[Event "2026 European Womens Championship"]
[Site "Batumi, GE"]
[Date "2026.06.04"]
[Round "10"]
[White "Ibrahimova, Sabina"]
[Black "Milliet, Sophie"]
[Result "0-1"]
[Board "24"]
[TimeControl "5400+30"]
[WhiteFideId "13403893"]
[BlackFideId "623725"]
[WhiteElo "2205"]
[BlackElo "2361"]
[WhiteTitle "WIM"]
[BlackTitle "IM"]
[WhiteClock "0:00:46"]
[BlackClock "0:13:56"]
[Variant "Standard"]

1. Nf3 {[%clk 1:24:22]}  Nf6 {[%clk 1:30:52]} 2. c4 {[%clk 1:24:36]}  e6 {[%clk 1:31:18]} 3. g3 {[%clk 1:23:38]}  d5 {[%clk 1:31:42]}
4. Bg2 {[%clk 1:23:54]}  Be7 {[%clk 1:32:06]} 5. O-O {[%clk 1:23:43]}  O-O {[%clk 1:32:28]} 6. d4 {[%clk 1:23:57]}  a5 {[%clk 1:32:45]}
7. Nc3 {[%clk 1:18:38]}  c6 {[%clk 1:32:59]} 8. b3 {[%clk 1:17:04]}  b6 {[%clk 1:32:33]} 9. Bb2 {[%clk 1:16:41]}  Ba6 {[%clk 1:32:36]}
10. a4 {[%clk 1:06:12]}  Nbd7 {[%clk 1:30:44]} 11. Nd2 {[%clk 1:04:59]}  Rc8 {[%clk 1:16:25]} 12. Re1 {[%clk 1:00:57]}  c5 {[%clk 1:00:33]}
13. cxd5 {[%clk 0:54:26]}  cxd4 {[%clk 1:00:48]} 14. Nb5 {[%clk 0:54:13]}  exd5 {[%clk 0:48:30]} 15. Nf3 {[%clk 0:44:00]}  Bb4 {[%clk 0:47:41]}
16. Rf1 {[%clk 0:44:25]}  Bc3 {[%clk 0:45:34]} 17. Ra2 {[%clk 0:42:01]}  Bxb5 {[%clk 0:36:49]} 18. axb5 {[%clk 0:42:08]}  Ne4 {[%clk 0:36:18]}
19. Nxd4 {[%clk 0:37:01]}  Ne5 {[%clk 0:36:41]} 20. e3 {[%clk 0:21:00]}  Rc5 {[%clk 0:29:43]} 21. Qh5 {[%clk 0:17:06]}  Qf6 {[%clk 0:24:35]}
22. Ba3 {[%clk 0:06:47]}  Bb4 {[%clk 0:24:50]} 23. Bxb4 {[%clk 0:06:54]}  axb4 {[%clk 0:25:16]} 24. h3 {[%clk 0:06:13]}  g6 {[%clk 0:23:40]}
25. Qh6 {[%clk 0:05:28]}  Nd3 {[%clk 0:22:27]} 26. Kh2 {[%clk 0:01:51]}  Rfc8 {[%clk 0:18:46]} 27. f3 {[%clk 0:01:15]}  Nd6 {[%clk 0:16:39]}
28. Rd2 {[%clk 0:01:16]}  Rc3 {[%clk 0:16:50]} 29. Rfd1 {[%clk 0:01:07]}  Nc5 {[%clk 0:16:34]} 30. Ne2 {[%clk 0:00:38]}  Nf5 {[%clk 0:16:58]}
31. Qf4 {[%clk 0:00:57]}  Rxb3 {[%clk 0:14:30]} 32. Rxd5 {[%clk 0:00:47]}  Ne6 {[%clk 0:14:53]} 33. Rxf5 {[%clk 0:00:46]}  gxf5 {[%clk 0:13:32]}
34. Qh4 {[%clk 0:00:46]}  Qxh4 {[%clk 0:13:56]} 0-1

[Event "2026 European Womens Championship"]
[Site "Batumi, GE"]
[Date "2026.06.04"]
[Round "10"]
[White "Gaponenko, Inna"]
[Black "Aydin, Gulenay"]
[Result "1-0"]
[Board "25"]
[TimeControl "5400+30"]
[WhiteFideId "14101181"]
[BlackFideId "34557431"]
[WhiteElo "2331"]
[BlackElo "2204"]
[WhiteTitle "IM"]
[BlackTitle "WIM"]
[WhiteClock "0:01:07"]
[BlackClock "0:00:58"]
[Variant "Standard"]

1. e4 {[%clk 1:30:58]}  c5 {[%clk 1:27:51]} 2. Nf3 {[%clk 1:31:24]}  g6 {[%clk 1:27:49]} 3. c3 {[%clk 1:30:14]}  d5 {[%clk 1:28:13]}
4. exd5 {[%clk 1:30:39]}  Qxd5 {[%clk 1:28:38]} 5. d4 {[%clk 1:31:04]}  Bg7 {[%clk 1:29:00]} 6. Na3 {[%clk 1:30:46]}  cxd4 {[%clk 1:29:22]}
7. Nb5 {[%clk 1:31:08]}  Na6 {[%clk 1:29:46]} 8. Nbxd4 {[%clk 1:31:33]}  Nf6 {[%clk 1:29:47]} 9. Bb5+ {[%clk 1:31:43]}  Bd7 {[%clk 1:30:14]}
10. Bxa6 {[%clk 1:31:16]}  bxa6 {[%clk 1:30:42]} 11. O-O {[%clk 1:31:36]}  O-O {[%clk 1:29:52]} 12. Re1 {[%clk 1:31:30]}  Rfe8 {[%clk 1:24:45]}
13. Ne5 {[%clk 1:16:24]}  Bc8 {[%clk 1:20:46]} 14. c4 {[%clk 1:09:32]}  Qd6 {[%clk 1:15:27]} 15. Qf3 {[%clk 1:08:48]}  Rb8 {[%clk 1:02:48]}
16. Nec6 {[%clk 0:57:16]}  Rb7 {[%clk 1:01:51]} 17. Bf4 {[%clk 0:51:32]}  Qc5 {[%clk 1:00:25]} 18. Re5 {[%clk 0:38:44]}  Qb6 {[%clk 0:56:36]}
19. b4 {[%clk 0:37:30]}  Rd7 {[%clk 0:55:44]} 20. c5 {[%clk 0:34:38]}  Qb7 {[%clk 0:55:53]} 21. Rae1 {[%clk 0:29:53]}  e6 {[%clk 0:50:37]}
22. a3 {[%clk 0:11:25]}  Nh5 {[%clk 0:47:41]} 23. Rxh5 {[%clk 0:11:38]}  gxh5 {[%clk 0:43:49]} 24. Nf5 {[%clk 0:11:30]}  f6 {[%clk 0:33:15]}
25. Nd6 {[%clk 0:05:00]}  Rxd6 {[%clk 0:33:39]} 26. Bxd6 {[%clk 0:05:27]}  Qf7 {[%clk 0:28:13]} 27. Nd4 {[%clk 0:05:22]}  Kh8 {[%clk 0:13:33]}
28. h3 {[%clk 0:03:57]}  Rg8 {[%clk 0:13:13]} 29. c6 {[%clk 0:01:09]}  h4 {[%clk 0:09:01]} 30. a4 {[%clk 0:01:27]}  f5 {[%clk 0:09:21]}
31. Nc2 {[%clk 0:00:56]}  Bf6 {[%clk 0:08:07]} 32. Ne3 {[%clk 0:00:45]}  e5 {[%clk 0:05:18]} 33. Nxf5 {[%clk 0:00:57]}  Qe6 {[%clk 0:05:47]}
34. Nh6 {[%clk 0:01:20]}  Rg6 {[%clk 0:00:39]} 35. Rxe5 {[%clk 0:00:38]}  Qxh3 {[%clk 0:00:34]} 36. Re8+ {[%clk 0:00:44]}  Kg7 {[%clk 0:00:58]}
37. Rg8+ {[%clk 0:01:07]} 1-0

[Event "2026 European Womens Championship"]
[Site "Batumi, GE"]
[Date "2026.06.04"]
[Round "10"]
[White "Bashylina, Luisa"]
[Black "Khukhashvili, Sopiko"]
[Result "0-1"]
[Board "26"]
[TimeControl "5400+30"]
[WhiteFideId "12983292"]
[BlackFideId "13602055"]
[WhiteElo "2208"]
[BlackElo "2329"]
[WhiteTitle "WFM"]
[BlackTitle "IM"]
[WhiteClock "0:30:53"]
[BlackClock "0:38:43"]
[Variant "Standard"]

1. d4 {[%clk 1:30:57]}  Nf6 {[%clk 1:30:54]} 2. c4 {[%clk 1:31:23]}  e6 {[%clk 1:31:20]} 3. Nc3 {[%clk 1:31:50]}  Bb4 {[%clk 1:31:46]}
4. Qc2 {[%clk 1:32:16]}  d6 {[%clk 1:32:08]} 5. e3 {[%clk 1:32:33]}  O-O {[%clk 1:32:18]} 6. Bd3 {[%clk 1:31:37]}  e5 {[%clk 1:31:23]}
7. Nge2 {[%clk 1:30:48]}  Nc6 {[%clk 1:30:40]} 8. O-O {[%clk 1:24:09]}  Bxc3 {[%clk 1:30:20]} 9. Qxc3 {[%clk 1:16:36]}  e4 {[%clk 1:30:16]}
10. Bc2 {[%clk 1:15:18]}  d5 {[%clk 1:30:43]} 11. b3 {[%clk 1:13:52]}  Re8 {[%clk 1:30:04]} 12. f3 {[%clk 1:09:21]}  exf3 {[%clk 1:23:11]}
13. gxf3 {[%clk 1:09:20]}  a5 {[%clk 1:11:21]} 14. Nf4 {[%clk 0:56:30]}  Ra6 {[%clk 1:03:41]} 15. a3 {[%clk 0:51:21]}  Ne7 {[%clk 0:52:11]}
16. Bb2 {[%clk 0:47:12]}  g5 {[%clk 0:49:10]} 17. Ng2 {[%clk 0:42:13]}  Bh3 {[%clk 0:43:43]} 18. e4 {[%clk 0:35:28]}  dxc4 {[%clk 0:42:58]}
19. Qxc4 {[%clk 0:33:10]}  Bxg2 {[%clk 0:38:42]} 20. Kxg2 {[%clk 0:32:59]}  Ng6 {[%clk 0:38:44]} 21. Rad1 {[%clk 0:30:53]}  Rc6 {[%clk 0:38:43]} 0-1

[Event "2026 European Womens Championship"]
[Site "Batumi, GE"]
[Date "2026.06.04"]
[Round "10"]
[White "Antova, Gabriela"]
[Black "Rakhmangulova, Anastasiya"]
[Result "1-0"]
[Board "27"]
[TimeControl "5400+30"]
[WhiteFideId "2915235"]
[BlackFideId "14117479"]
[WhiteElo "2203"]
[BlackElo "2328"]
[WhiteTitle "WGM"]
[BlackTitle "WGM"]
[WhiteClock "0:18:22"]
[BlackClock "0:38:16"]
[Variant "Standard"]

1. e4 {[%clk 1:30:54]}  c5 {[%clk 1:30:54]} 2. Nf3 {[%clk 1:31:14]}  e6 {[%clk 1:31:17]} 3. d4 {[%clk 1:31:28]}  cxd4 {[%clk 1:31:42]}
4. Nxd4 {[%clk 1:31:52]}  Nc6 {[%clk 1:32:09]} 5. Nc3 {[%clk 1:31:42]}  Qc7 {[%clk 1:32:33]} 6. Be3 {[%clk 1:31:38]}  a6 {[%clk 1:32:56]}
7. Qd2 {[%clk 1:31:55]}  Nf6 {[%clk 1:31:36]} 8. O-O-O {[%clk 1:32:10]}  Bb4 {[%clk 1:30:20]} 9. f3 {[%clk 1:32:18]}  h5 {[%clk 1:25:01]}
10. Nb3 {[%clk 1:13:24]}  Ne5 {[%clk 1:22:01]} 11. Bd4 {[%clk 0:58:38]}  b5 {[%clk 1:11:29]} 12. Qg5 {[%clk 0:53:47]}  Ng6 {[%clk 1:11:49]}
13. Bxf6 {[%clk 0:51:31]}  gxf6 {[%clk 1:12:14]} 14. Qxf6 {[%clk 0:51:54]}  Qe5 {[%clk 1:00:25]} 15. Qxe5 {[%clk 0:51:57]}  Nxe5 {[%clk 1:00:51]}
16. Rd4 {[%clk 0:40:45]}  Nc6 {[%clk 0:59:54]} 17. Rd2 {[%clk 0:38:13]}  Bb7 {[%clk 0:58:00]} 18. a3 {[%clk 0:32:41]}  Bf8 {[%clk 0:57:48]}
19. f4 {[%clk 0:32:24]}  h4 {[%clk 0:55:28]} 20. e5 {[%clk 0:27:18]}  O-O-O {[%clk 0:53:24]} 21. Bd3 {[%clk 0:24:54]}  Bh6 {[%clk 0:53:14]}
22. Rf1 {[%clk 0:24:49]}  f6 {[%clk 0:45:41]} 23. exf6 {[%clk 0:24:42]}  Rhf8 {[%clk 0:45:38]} 24. g4 {[%clk 0:16:03]}  hxg3 {[%clk 0:45:02]}
25. hxg3 {[%clk 0:16:29]}  e5 {[%clk 0:44:06]} 26. Nd5 {[%clk 0:13:48]}  exf4 {[%clk 0:37:21]} 27. gxf4 {[%clk 0:14:09]}  Na7 {[%clk 0:37:07]}
28. Rh2 {[%clk 0:13:28]}  Bxd5 {[%clk 0:34:39]} 29. Rxh6 {[%clk 0:13:53]}  Rf7 {[%clk 0:27:19]} 30. Rg1 {[%clk 0:13:00]}  Rdf8 {[%clk 0:27:29]}
31. Rgg6 {[%clk 0:13:04]}  Bxb3 {[%clk 0:25:17]} 32. cxb3 {[%clk 0:13:30]}  Kc7 {[%clk 0:25:31]} 33. b4 {[%clk 0:12:10]}  Nc6 {[%clk 0:22:42]}
34. Bb1 {[%clk 0:10:54]}  d5 {[%clk 0:22:42]} 35. Ba2 {[%clk 0:11:16]}  Kd6 {[%clk 0:23:02]} 36. Rg5 {[%clk 0:04:45]}  Rxf6 {[%clk 0:22:43]}
37. Rxd5+ {[%clk 0:05:04]}  Kc7 {[%clk 0:22:43]} 38. Rxf6 {[%clk 0:05:18]}  Rxf6 {[%clk 0:23:09]} 39. f5 {[%clk 0:05:26]}  Ne7 {[%clk 0:20:56]}
40. Rc5+ {[%clk 0:05:48]}  Kb6 {[%clk 0:19:58]} 41. Bb1 {[%clk 0:04:24]}  Nc6 {[%clk 0:16:59]} 42. Be4 {[%clk 0:01:31]}  Nd4 {[%clk 0:14:35]}
43. Rd5 {[%clk 0:01:03]}  Nc6 {[%clk 0:14:48]} 44. Kd2 {[%clk 0:00:53]}  a5 {[%clk 0:09:22]} 45. bxa5+ {[%clk 0:24:35]}  Nxa5 {[%clk 0:39:39]}
46. Bd3 {[%clk 0:24:37]}  Nb3+ {[%clk 0:39:29]} 47. Kc3 {[%clk 0:24:20]}  Nc5 {[%clk 0:39:33]} 48. Bxb5 {[%clk 0:24:19]}  Rh6 {[%clk 0:38:43]}
49. Be2 {[%clk 0:21:13]}  Rh3+ {[%clk 0:38:23]} 50. Kd4 {[%clk 0:18:53]}  Rh4+ {[%clk 0:38:39]} 51. Ke3 {[%clk 0:19:08]}  Na4 {[%clk 0:38:16]}
52. f6 {[%clk 0:18:22]} 1-0